bitfinex/quotes_BTCUSD_20250208
["timestamp","ask_amount","ask_price","bid_price","bid_amount"]
[1738973472676,0.0011068,96578.0,96577.0,1.14421965]
[1738973472864,0.0011068,96578.0,96577.0,1.13521965]
[1738973473141,0.0011068,96578.0,96577.0,1.12621965]
[1738973473299,0.0011068,96578.0,96577.0,1.13521965]
[1738973473706,0.0011068,96578.0,96577.0,1.12621965]
[1738973473915,0.0021068,96578.0,96577.0,1.13521965]
[1738973474134,0.0021068,96578.0,96577.0,1.14421965]
[1738973477354,0.0021068,96578.0,96577.0,1.17624582]
[1738973478707,0.0001068,96578.0,96577.0,1.16724582]
[1738973479274,0.0001068,96578.0,96577.0,1.17624582]
[1738973481799,0.0001068,96578.0,96577.0,1.19174416]
[1738973483684,0.0001068,96578.0,96577.0,1.17624582]
[1738973484652,0.0001068,96578.0,96577.0,1.14421965]
[1738973486649,0.0001068,96578.0,96577.0,1.17621943]
[1738973486991,0.0001068,96578.0,96577.0,1.14421965]
[1738973487193,0.0001068,96578.0,96577.0,1.17622053]
[1738973496240,0.0001068,96578.0,96577.0,1.1917383]
[1738973497489,0.0001068,96578.0,96577.0,1.17622053]
[1738973505990,0.0001068,96578.0,96577.0,1.18622053]
[1738973507303,0.0001068,96578.0,96577.0,1.16822053]
[1738973507506,0.0001068,96578.0,96577.0,1.17722053]
[1738973507704,0.0001068,96578.0,96577.0,1.18622053]
[1738973509001,0.0011068,96587.0,96586.0,0.165302]
[1738973509200,0.0011068,96587.0,96586.0,0.3008416]
[1738973509500,0.0778,96598.0,96591.0,0.155293]
[1738973509666,0.0778,96598.0,96591.0,0.28979753]
[1738973509811,0.01318613,96612.0,96591.0,0.28979753]
[1738973510169,0.0763,96605.0,96591.0,0.28979753]
[1738973510939,0.0763,96605.0,96591.0,0.30531259]
[1738973511342,0.0763,96605.0,96591.0,0.32331259]
[1738973513129,0.00013252,96592.0,96591.0,0.32331259]
[1738973513836,0.00013252,96592.0,96591.0,1.19171259]
[1738973516787,0.00013252,96592.0,96591.0,1.20202387]
[1738973517492,0.00013252,96592.0,96591.0,0.33362387]
[1738973521863,0.00013252,96592.0,96591.0,0.3584509]
[1738973522586,0.00013252,96592.0,96591.0,0.8999509]
[1738973523796,0.00013252,96592.0,96591.0,0.85960881]
[1738973524195,0.00013252,96592.0,96591.0,0.88260881]
[1738973524396,0.00013252,96592.0,96591.0,0.89260881]
[1738973525540,0.00013252,96592.0,96591.0,0.88360881]
[1738973525897,0.00013252,96592.0,96591.0,0.89260881]
[1738973526318,0.00013252,96592.0,96591.0,0.88360881]
[1738973526724,0.00013252,96592.0,96591.0,0.89260881]
[1738973527048,0.00013252,96592.0,96591.0,0.88360881]
[1738973527196,0.12923252,96592.0,96591.0,0.87513253]
[1738973527399,0.12923252,96592.0,96591.0,0.77262888]
[1738973527580,0.14215577,96592.0,96591.0,0.18881672]
[1738973527783,0.15222875,96592.0,96591.0,0.19781672]
[1738973527980,0.1393055,96592.0,96591.0,0.19781672]
[1738973528226,0.1393055,96592.0,96591.0,0.198041]
[1738973528638,0.1393055,96592.0,96591.0,0.024748]
[1738973528954,0.0776,96591.0,96582.0,0.01048828]
[1738973529112,0.0496,96590.0,96582.0,0.01048828]
[1738973529315,0.1272,96588.0,96582.0,0.02110558]
[1738973529550,0.1272,96586.0,96578.0,0.155314]
[1738973529751,0.0776,96584.0,96583.0,0.155305]
[1738973530073,0.0496,96583.0,96582.0,0.155308]
[1738973530368,0.13726742,96583.0,96582.0,0.164308]
[1738973530736,0.13726742,96583.0,96582.0,0.155308]
[1738973531039,0.0776,96580.0,96578.0,0.155314]
[1738973531284,0.0776,96578.0,96577.0,0.1553614]
[1738973531484,0.1272,96578.0,96577.0,0.1553614]
[1738973531632,0.13725668,96578.0,96577.0,0.1553614]
[1738973532234,0.13725668,96578.0,96577.0,0.01042722]
[1738973532445,0.13725668,96578.0,96577.0,4.54e-05]
[1738973532758,0.16651305,96578.0,96577.0,4.54e-05]
[1738973532957,0.20709,96576.0,96570.0,0.00022428]
[1738973533185,0.155326,96571.0,96570.0,0.00027152]
[1738973533360,0.53502965,96571.0,96570.0,0.00027152]
[1738973533558,0.54506932,96571.0,96570.0,0.00027152]
[1738973534004,0.54506932,96571.0,96570.0,0.00727152]
[1738973534501,0.6311874,96571.0,96570.0,0.00727152]
[1738973534827,0.6311874,96571.0,96570.0,0.01127152]
[1738973535508,0.54658419,96571.0,96570.0,0.01127152]
[1738973536370,0.54558419,96571.0,96570.0,0.00427152]
[1738973536765,0.44408054,96571.0,96570.0,0.01227152]
[1738973536944,0.45272054,96571.0,96570.0,0.01227152]
[1738973537147,0.45172054,96571.0,96570.0,0.00027152]
[1738973537549,0.45172054,96571.0,96570.0,0.00127152]
[1738973537744,0.45172054,96571.0,96570.0,0.00027152]
[1738973537952,0.28775454,96571.0,96570.0,0.00427152]
[1738973538169,0.29635454,96571.0,96570.0,0.00527152]
[1738973538749,0.32598999,96571.0,96570.0,0.00527152]
[1738973539155,0.32598999,96571.0,96570.0,0.00127152]
[1738973539564,0.32598999,96571.0,96570.0,0.00427152]
[1738973539949,0.32598999,96571.0,96570.0,0.00727152]
[1738973540185,0.32598999,96571.0,96570.0,0.00027152]
[1738973540388,0.29643454,96571.0,96570.0,0.00427152]
[1738973540718,0.29643454,96571.0,96570.0,0.00527152]
[1738973541016,0.29643454,96571.0,96570.0,0.00027152]
[1738973541222,0.29643454,96571.0,96570.0,0.00527152]
[1738973541442,0.3069119,96571.0,96570.0,0.00527152]
[1738973542007,0.29643454,96571.0,96570.0,0.00527152]
[1738973542402,0.4239932,96571.0,96570.0,0.00527152]
[1738973543076,0.39893819,96571.0,96570.0,0.00527152]
[1738973544923,0.15,96570.0,96561.0,0.00013222]
[1738973545108,0.42904,96562.0,96561.0,0.000588]
[1738973545335,0.53154365,96562.0,96561.0,0.000588]
[1738973545463,0.53160769,96562.0,96561.0,0.000588]
[1738973545823,0.62724957,96562.0,96561.0,0.000588]
[1738973546192,0.62724957,96562.0,96561.0,0.004588]
[1738973546394,0.62724957,96562.0,96561.0,0.008588]
[1738973546722,0.62724957,96562.0,96561.0,0.004588]
[1738973547077,0.62824957,96562.0,96561.0,0.012588]
[1738973547275,0.62820692,96562.0,96561.0,0.012588]
[1738973547480,0.62827096,96562.0,96561.0,0.012588]
[1738973547690,0.6282503,96562.0,96561.0,0.012588]
[1738973548307,0.197,96559.0,96544.0,0.08349467]
[1738973548508,0.433467,96545.0,96544.0,0.08355589]
[1738973548993,0.53597065,96545.0,96544.0,6.122e-05]
[1738973549382,0.53597065,96545.0,96544.0,0.00106122]
[1738973549599,0.54669606,96545.0,96544.0,0.00106122]
[1738973549723,0.64919971,96545.0,96544.0,0.00106122]
[1738973549924,0.64919971,96545.0,96544.0,6.122e-05]
[1738973550136,0.65019971,96545.0,96544.0,0.00706122]
[1738973550776,0.65019971,96545.0,96544.0,0.01106122]
[1738973552582,0.65019971,96545.0,96544.0,0.0112855]
[1738973554475,0.66064361,96545.0,96544.0,0.0112855]
[1738973555319,0.65964361,96545.0,96544.0,0.0042855]
[1738973556015,0.65964361,96545.0,96544.0,0.0002855]
[1738973556230,0.65964361,96545.0,96544.0,0.0012855]
[1738973557251,0.68264361,96545.0,96544.0,0.0012855]
[1738973561665,0.68964361,96545.0,96544.0,0.0012855]
[1738973562047,0.2781,96541.0,96512.0,0.10016134]
[1738973562286,0.305403,96523.0,96522.0,0.08356586]
[1738973562630,0.54464665,96523.0,96522.0,0.08356586]
[1738973562840,0.55534088,96523.0,96522.0,7.119e-05]
[1738973563051,0.68084453,96523.0,96522.0,7.119e-05]
[1738973563179,0.71122623,96523.0,96522.0,0.00107119]
[1738973563388,0.74136745,96523.0,96522.0,0.00407119]
[1738973563619,0.7519676,96523.0,96522.0,0.00307119]
[1738973564721,0.69144468,96523.0,96522.0,7.119e-05]
[1738973565071,0.70044468,96523.0,96522.0,7.119e-05]
[1738973565427,0.69144468,96523.0,96522.0,7.119e-05]
[1738973565640,0.70944468,96523.0,96522.0,0.00107119]
[1738973566162,0.70044468,96523.0,96522.0,0.00107119]
[1738973566391,0.69144468,96523.0,96522.0,7.119e-05]
[1738973566568,0.70044468,96523.0,96522.0,7.119e-05]
[1738973566777,0.70944468,96523.0,96522.0,0.00107119]
[1738973566916,0.70944468,96523.0,96522.0,7.119e-05]
[1738973567116,0.68644468,96523.0,96522.0,7.119e-05]
[1738973567341,0.69544468,96523.0,96522.0,0.00107119]
[1738973567750,0.68644468,96523.0,96522.0,0.00107119]
[1738973568155,0.69444468,96523.0,96522.0,0.00107119]
[1738973568557,0.66844468,96523.0,96522.0,7.119e-05]
[1738973568762,0.67644468,96523.0,96522.0,0.00107119]
[1738973568963,0.68244468,96523.0,96522.0,0.00107119]
[1738973569283,0.68944468,96523.0,96522.0,0.00207119]
[1738973569835,1.20745468,96523.0,96522.0,0.00207119]
[1738973570313,1.19881468,96523.0,96522.0,0.00207119]
[1738973570544,1.20741468,96523.0,96522.0,0.00207119]
[1738973574536,1.10491103,96523.0,96522.0,0.00207119]
[1738973576481,1.09631103,96523.0,96522.0,0.00207119]
[1738973576685,0.71370723,96523.0,96522.0,0.00207119]
[1738973577116,0.86370723,96523.0,96522.0,0.00229547]
[1738973577724,0.85770723,96523.0,96522.0,0.00229547]
[1738973578102,0.84570723,96523.0,96522.0,0.00029547]
[1738973578337,0.93340076,96523.0,96522.0,0.00029547]
[1738973578581,0.93040076,96523.0,96522.0,0.00029547]
[1738973578774,0.93640076,96523.0,96522.0,0.00029547]
[1738973579777,0.85370723,96523.0,96522.0,0.00029547]
[1738973581364,0.85370723,96523.0,96522.0,0.01579074]
[1738973582352,0.69830423,96523.0,96522.0,0.01579074]
[1738973583070,0.69830423,96523.0,96522.0,0.00029547]
[1738973590779,0.53970423,96523.0,96522.0,0.00029547]
[1738973591680,0.52870423,96523.0,96522.0,0.00029547]
[1738973592920,0.52870423,96523.0,96522.0,0.00129547]
[1738973593323,0.52870423,96523.0,96522.0,0.15569947]
[1738973593687,0.52970423,96523.0,96522.0,0.15669947]
[1738973594149,0.52970423,96523.0,96522.0,0.16069947]
[1738973596750,0.52970423,96523.0,96522.0,0.20509947]
[1738973596937,0.52970423,96523.0,96522.0,0.88290312]
[1738973597734,0.52870423,96523.0,96522.0,0.88190312]
[1738973598072,0.52870423,96523.0,96522.0,0.87790312]
[1738973598299,0.52970423,96523.0,96522.0,0.88490312]
[1738973598734,0.52970423,96523.0,96522.0,0.90790312]
[1738973598941,0.52970423,96523.0,96522.0,1.08994639]
[1738973599144,0.52970423,96523.0,96522.0,1.09994639]
[1738973599349,0.53070423,96523.0,96522.0,1.10694639]
[1738973599697,0.52970423,96523.0,96522.0,1.09994639]
[1738973599897,0.52970423,96523.0,96522.0,1.10694639]
[1738973600100,0.52970423,96523.0,96522.0,1.09994639]
[1738973600548,0.01169423,96523.0,96522.0,1.10894639]
[1738973600921,0.001,96523.0,96522.0,1.10894639]
[1738973601125,0.0001068,96541.0,96540.0,0.155376]
[1738973602861,0.0001068,96541.0,96540.0,0.1564117]
[1738973603202,0.0001068,96541.0,96540.0,0.163376]
[1738973603405,0.0011068,96541.0,96540.0,0.166376]
[1738973604035,0.0001068,96541.0,96540.0,0.158376]
[1738973604268,0.0001068,96541.0,96540.0,0.165376]
[1738973605146,0.0001068,96541.0,96540.0,0.162376]
[1738973605735,0.0001068,96541.0,96540.0,0.155376]
[1738973605935,0.0001068,96541.0,96540.0,0.163376]
[1738973606267,0.0011068,96541.0,96540.0,0.17395224]
[1738973606684,0.0001068,96541.0,96540.0,0.17298794]
[1738973606832,0.0011068,96541.0,96540.0,0.18198794]
[1738973608585,0.0011068,96541.0,96540.0,0.18095224]
[1738973610935,0.0011068,96541.0,96540.0,0.170376]
[1738973611182,0.0011068,96541.0,96540.0,0.015]
[1738973611183,0.0816068,96541.0,96540.0,0.015]
[1738973611376,0.28593418,96541.0,96540.0,0.015]
[1738973611513,0.25199539,96541.0,96540.0,0.015]
[1738973612280,0.25099539,96541.0,96540.0,0.006]
[1738973612477,0.25099539,96541.0,96540.0,0.012]
[1738973613084,0.25099539,96541.0,96540.0,0.006]
[1738973613272,0.32206613,96541.0,96540.0,0.006]
[1738973613901,0.32206613,96541.0,96540.0,0.008]
[1738973614223,0.32206613,96541.0,96540.0,0.006]
[1738973614419,0.32206613,96541.0,96540.0,0.008]
[1738973615127,0.32206613,96541.0,96540.0,0.002]
[1738973615298,0.32206613,96541.0,96524.0,0.207202]
[1738973615299,0.155379,96538.0,96524.0,0.207202]
[1738973615647,0.0454,96536.0,96530.0,0.155391]
[1738973616472,0.0454,96536.0,96528.0,0.155394]
[1738973616866,0.0454,96536.0,96529.0,0.155392]
[1738973617509,0.155384,96535.0,96529.0,0.155392]
[1738973617709,0.07647069,96534.0,96529.0,0.155392]
[1738973618274,0.07647069,96534.0,96530.0,0.002]
[1738973618853,0.07647069,96534.0,96529.0,0.155392]
[1738973619275,0.01140748,96533.0,96529.0,0.158392]
[1738973619892,0.200782,96536.0,96529.0,0.159392]
[1738973620092,0.01141739,96532.0,96529.0,0.159392]
[1738973620266,0.04921511,96535.0,96529.0,0.159392]
[1738973620468,0.01141524,96531.0,96529.0,0.004]
[1738973620688,0.04921511,96535.0,96529.0,0.005]
[1738973620895,0.04921511,96535.0,96530.0,0.155392]
[1738973621457,0.05413632,96534.0,96530.0,0.155392]
[1738973622140,0.05413632,96534.0,96531.0,0.15539]
[1738973622346,0.0454,96536.0,96530.0,0.003]
[1738973622747,0.0454,96536.0,96531.0,0.155389]
[1738973622929,0.01142384,96535.0,96531.0,0.155389]
[1738973623132,0.01142384,96535.0,96530.0,0.158391]
[1738973623333,0.01142384,96535.0,96530.0,0.003]
[1738973623536,0.03774251,96534.0,96531.0,0.15639]
[1738973623983,0.03774251,96534.0,96531.0,0.15739]
[1738973624383,0.03774251,96534.0,96531.0,0.15639]
[1738973625642,0.03774251,96534.0,96531.0,0.001]
[1738973625848,0.03774251,96534.0,96531.0,0.004]
[1738973626070,0.03822383,96533.0,96531.0,0.004]
[1738973626266,0.04150586,96533.0,96531.0,0.005]
[1738973626468,0.01141739,96532.0,96531.0,0.005]
[1738973627020,0.01141739,96532.0,96531.0,0.004]
[1738973627194,0.01141739,96532.0,96531.0,0.15939]
[1738973627422,0.01141739,96532.0,96531.0,0.16139]
[1738973627962,0.01141739,96532.0,96531.0,0.15739]
[1738973628157,0.01141739,96532.0,96531.0,0.16239]
[1738973628724,0.01141739,96532.0,96531.0,0.15739]
[1738973628919,0.0454,96536.0,96534.0,0.155385]
[1738973629322,0.00328452,96535.0,96534.0,0.155385]
[1738973629483,0.00328452,96535.0,96532.0,0.155387]
[1738973630112,0.00328452,96535.0,96534.0,0.001]
[1738973631149,0.00328452,96535.0,96534.0,0.004]
[1738973631606,0.00328452,96535.0,96534.0,0.001]
[1738973631846,0.05682556,96535.0,96534.0,0.005]
[1738973632070,0.00328452,96535.0,96534.0,0.159385]
[1738973632415,0.00328452,96535.0,96534.0,0.160385]
[1738973632826,0.0454,96536.0,96534.0,0.160385]
[1738973633184,0.00328355,96535.0,96534.0,0.160385]
[1738973634022,0.00328355,96535.0,96534.0,0.156385]
[1738973634428,0.0454,96536.0,96534.0,0.159385]
[1738973634788,0.00328355,96535.0,96534.0,0.156385]
[1738973635190,0.00328355,96535.0,96534.0,0.160385]
[1738973635968,0.00328355,96535.0,96534.0,0.156385]
[1738973636131,0.00328355,96535.0,96534.0,0.155385]
[1738973636355,0.00328355,96535.0,96534.0,0.156385]
[1738973637331,0.0454,96536.0,96534.0,0.005]
[1738973637537,0.0454,96536.0,96535.0,0.155384]
[1738973638297,0.01434553,96536.0,96535.0,0.155384]
[1738973638540,0.0001068,96541.0,96535.0,0.64503938]
[1738973638778,0.0001068,96541.0,96540.0,0.155376]
[1738973639043,0.0001068,96541.0,96540.0,0.15641171]
[1738973639969,0.0001068,96541.0,96540.0,0.16441171]
[1738973640230,0.0001068,96541.0,96540.0,0.163376]
[1738973640658,0.0011068,96541.0,96540.0,0.163376]
[1738973641121,0.0001068,96541.0,96540.0,0.163376]
[1738973641398,0.0001068,96541.0,96540.0,0.16441171]
[1738973641637,0.0011068,96541.0,96540.0,0.17341171]
[1738973641867,0.0011068,96541.0,96540.0,0.172376]
[1738973647221,0.0011068,96541.0,96540.0,0.17260028]
[1738973648846,0.0011068,96541.0,96540.0,0.18810555]
[1738973650103,0.0011068,96541.0,96540.0,0.17260028]
[1738973650348,0.0842068,96541.0,96540.0,0.17260028]
[1738973650587,0.13912748,96541.0,96540.0,0.01722428]
[1738973650833,0.29450148,96541.0,96540.0,0.01722428]
[1738973651101,0.15111058,96541.0,96540.0,0.01722428]
[1738973651360,0.15011058,96541.0,96540.0,0.00022428]
[1738973651604,0.15011058,96541.0,96540.0,0.00522428]
[1738973651860,0.15111058,96541.0,96540.0,0.01422428]
[1738973653405,0.1426899,96541.0,96540.0,0.01422428]
[1738973659059,0.1426899,96541.0,96540.0,0.00922428]
[1738973659321,0.1416899,96541.0,96540.0,0.00422428]
[1738973659528,0.1426899,96541.0,96540.0,0.01222428]
[1738973661605,0.1426899,96541.0,96537.0,0.155379]
[1738973661606,0.1426899,96541.0,96531.0,0.20741128]
[1738973661795,0.1509699,96541.0,96539.0,0.155376]
[1738973661973,0.1509699,96541.0,96533.0,0.207183]
[1738973662201,0.1509699,96541.0,96540.0,0.155376]
[1738973662405,0.1499699,96541.0,96540.0,0.155376]
[1738973662577,0.1379868,96541.0,96540.0,0.155376]
[1738973662758,0.15093868,96541.0,96540.0,0.155376]
[1738973663170,0.14993868,96541.0,96540.0,0.155376]
[1738973663628,0.15093868,96541.0,96540.0,0.163376]
[1738973663839,0.01305868,96541.0,96540.0,0.163376]
[1738973664249,0.0011068,96541.0,96540.0,0.163376]
[1738973665706,0.0011068,96541.0,96540.0,0.166376]
[1738973666087,0.09915388,96541.0,96540.0,0.011]
[1738973666424,0.11112068,96541.0,96540.0,0.011]
[1738973667287,0.11012068,96541.0,96540.0,0.003]
[1738973668216,0.31229468,96541.0,96531.0,0.20741028]
[1738973668412,0.20732167,96540.0,96531.0,0.00022428]
[1738973668614,0.05194567,96540.0,96531.0,0.00022428]
[1738973668791,0.05194567,96540.0,96535.0,0.155383]
[1738973668993,0.05194567,96540.0,96531.0,0.00022428]
[1738973669192,0.05194567,96540.0,96534.0,0.155384]
[1738973669518,0.05816816,96539.0,96535.0,0.155383]
[1738973669716,0.05816816,96539.0,96536.0,0.15538]
[1738973669937,0.01142598,96538.0,96534.0,0.20718]
[1738973670229,0.01142598,96538.0,96534.0,0.155385]
[1738973670613,0.05776174,96537.0,96531.0,0.00322428]
[1738973670813,0.05776174,96537.0,96533.0,0.155386]
[1738973671017,0.01142168,96536.0,96533.0,0.155386]
[1738973671220,0.01142168,96536.0,96531.0,0.00322428]
[1738973671712,0.01142168,96536.0,96531.0,0.00022428]
[1738973671914,0.04626547,96536.0,96533.0,0.001]
[1738973672120,0.155384,96535.0,96533.0,0.001]
[1738973672329,0.16677987,96535.0,96533.0,0.001]
[1738973672750,0.01139587,96535.0,96533.0,0.001]
[1738973672987,0.01139587,96535.0,96531.0,0.00322428]
[1738973673242,0.01139587,96535.0,96533.0,0.001]
[1738973673646,0.01139587,96535.0,96533.0,0.005]
[1738973674390,0.00052343,96534.0,96533.0,0.004]
[1738973674796,0.01191715,96534.0,96533.0,0.005]
[1738973675364,0.01191715,96534.0,96533.0,0.001]
[1738973675568,0.08649582,96534.0,96533.0,0.004]
[1738973675763,0.08649582,96534.0,96533.0,0.006]
[1738973677877,0.08649582,96534.0,96531.0,0.00022428]
[1738973678074,0.08649582,96534.0,96533.0,0.006]
[1738973679278,0.08649582,96534.0,96533.0,0.002]
[1738973679998,0.01191715,96534.0,96533.0,0.002]
[1738973681608,0.01191715,96534.0,96533.0,0.006]
[1738973682747,0.16730215,96534.0,96533.0,0.006]
[1738973686785,0.24340215,96534.0,96533.0,0.006]
[1738973686995,0.24340215,96534.0,96533.0,0.004]
[1738973687333,0.48522686,96534.0,96533.0,0.001]
[1738973687857,0.48522686,96534.0,96533.0,0.005]
[1738973688014,0.48522686,96534.0,96533.0,0.004]
[1738973688219,0.155388,96532.0,96531.0,0.00022428]
[1738973688420,0.25789165,96532.0,96531.0,0.00022428]
[1738973688621,0.26930043,96532.0,96531.0,0.00022428]
[1738973689448,0.26981287,96532.0,96531.0,0.00022428]
[1738973690794,0.27081287,96532.0,96531.0,0.00122428]
[1738973690910,0.3698793,96532.0,96531.0,0.00122428]
[1738973691425,0.3708793,96532.0,96531.0,0.00122428]
[1738973691645,0.3688793,96532.0,96531.0,0.00122428]
[1738973691823,0.3688793,96532.0,96531.0,0.00022428]
[1738973692015,0.3698793,96532.0,96531.0,0.00022428]
[1738973692215,0.3698793,96532.0,96531.0,0.00122428]
[1738973692960,0.27081287,96532.0,96531.0,0.00122428]
[1738973693548,0.01292122,96532.0,96531.0,0.00022428]
[1738973693919,0.01492122,96532.0,96531.0,0.00022428]
[1738973694121,0.01392122,96532.0,96531.0,0.00022428]
[1738973694324,0.22028842,96532.0,96531.0,0.00022428]
[1738973694726,0.22028842,96532.0,96531.0,0.00122428]
[1738973695737,0.21728842,96532.0,96531.0,0.00022428]
[1738973696788,0.22544842,96532.0,96531.0,0.00022428]
[1738973697101,0.22544842,96532.0,96531.0,0.00122428]
[1738973697637,0.22544842,96532.0,96531.0,0.00022428]
[1738973697841,0.22515556,96532.0,96531.0,0.00122428]
[1738973698048,0.22615556,96532.0,96531.0,0.00122428]
[1738973699710,0.02056878,96532.0,96531.0,0.00122428]
[1738973700146,0.01240878,96532.0,96531.0,0.00122428]
[1738973700290,0.01240878,96532.0,96531.0,0.15661428]
[1738973700591,0.001,96532.0,96531.0,0.16677947]
[1738973700815,0.0001068,96534.0,96531.0,0.16677947]
[1738973701018,0.0001068,96534.0,96533.0,0.155387]
[1738973703516,0.0011068,96534.0,96533.0,0.163387]
[1738973706278,0.2364918,96534.0,96533.0,0.008]
[1738973706469,0.26484234,96534.0,96533.0,0.008]
[1738973706670,0.28531581,96534.0,96533.0,0.008]
[1738973706873,0.27489516,96534.0,96533.0,0.008]
[1738973707288,0.52739881,96534.0,96533.0,0.008]
[1738973707856,0.57419881,96534.0,96533.0,0.008]
[1738973710251,0.57419881,96534.0,96531.0,0.00022428]
[1738973710252,0.305388,96532.0,96531.0,0.00022428]
[1738973710470,0.6354953,96532.0,96531.0,0.00022428]
[1738973710614,0.64556238,96532.0,96531.0,0.00022428]
[1738973711665,0.64556238,96532.0,96531.0,0.00422428]
[1738973712491,0.66856238,96532.0,96531.0,0.00422428]
[1738973712667,1.21691408,96532.0,96531.0,0.00422428]
[1738973712866,2.16786808,96532.0,96531.0,0.00422428]
[1738973713273,1.80000608,96532.0,96531.0,0.00122428]
[1738973713540,1.21691408,96532.0,96531.0,0.00022428]
[1738973713711,1.22291408,96532.0,96531.0,0.00122428]
[1738973713914,1.22891408,96532.0,96531.0,0.00122428]
[1738973714074,1.22291408,96532.0,96531.0,0.00022428]
[1738973714787,1.22891408,96532.0,96531.0,0.00122428]
[1738973715197,1.19853238,96532.0,96531.0,0.00122428]
[1738973718287,1.88247308,96532.0,96531.0,0.00122428]
[1738973721040,1.89247308,96532.0,96531.0,0.00122428]
[1738973722190,1.90247308,96532.0,96531.0,0.00122428]
[1738973722447,0.3181,96531.0,96530.0,0.00022428]
[1738973722590,2.29369154,96531.0,96530.0,0.00022428]
[1738973722792,2.30367424,96531.0,96530.0,0.00022428]
[1738973723647,2.30367424,96531.0,96530.0,0.00122428]
[1738973723648,2.31267424,96531.0,96530.0,0.00122428]
[1738973724018,2.30967424,96531.0,96530.0,0.00222428]
[1738973724222,2.31967424,96531.0,96530.0,0.00222428]
[1738973724430,0.761203,96523.0,96508.0,0.00022428]
[1738973724629,2.13910735,96523.0,96508.0,0.00022428]
[1738973724871,2.03379525,96523.0,96508.0,0.00022428]
[1738973725095,1.69066425,96523.0,96508.0,0.00022428]
[1738973725312,1.87652325,96523.0,96508.0,0.00022428]
[1738973725570,1.9790269,96523.0,96508.0,0.00022428]
[1738973725810,1.9980269,96523.0,96522.0,0.00129547]
[1738973726064,1.9165489,96523.0,96522.0,0.00129547]
[1738973726286,1.9255489,96523.0,96522.0,0.00129547]
[1738973726945,1.9634989,96523.0,96522.0,0.00129547]
[1738973727436,1.5512413,96523.0,96522.0,0.00129547]
[1738973727668,1.9738583,96523.0,96522.0,0.00129547]
[1738973728674,0.305425,96509.0,96508.0,0.00022428]
[1738973728904,1.08505865,96509.0,96508.0,0.00036012]
[1738973729117,1.09334479,96509.0,96508.0,0.00036012]
[1738973729852,1.12372649,96509.0,96508.0,0.00036012]
[1738973730085,1.12972649,96509.0,96508.0,0.00136012]
[1738973730285,1.23223014,96509.0,96508.0,0.00136012]
[1738973731086,1.75941014,96509.0,96508.0,0.00136012]
[1738973731528,1.77600035,96509.0,96508.0,0.00136012]
[1738973731857,1.68774235,96509.0,96508.0,0.00136012]
[1738973732062,1.82705889,96509.0,96508.0,0.00136012]
[1738973732802,0.1091,96507.0,96485.0,0.00022428]
[1738973733007,0.1091,96507.0,96494.0,0.00036015]
[1738973733008,0.53675165,96495.0,96494.0,0.00036015]
[1738973733278,1.10810335,96495.0,96494.0,0.00036015]
[1738973733500,1.7892827,96495.0,96494.0,0.00036015]
[1738973734329,1.7892827,96495.0,96494.0,0.00136015]
[1738973734531,1.86751835,96495.0,96494.0,0.00136015]
[1738973734698,1.61259635,96495.0,96494.0,0.00136015]
[1738973734900,1.63359942,96495.0,96494.0,0.00136015]
[1738973735361,1.63359942,96495.0,96494.0,0.00036015]
[1738973735629,0.434269,96482.0,96468.0,0.08349467]
[1738973735872,1.05474265,96482.0,96468.0,0.08349467]
[1738973736119,1.06290123,96482.0,96468.0,0.08349467]
[1738973736774,1.06590123,96482.0,96468.0,0.08349467]
[1738973737944,1.06890123,96482.0,96468.0,0.08349467]
[1738973738180,1.17140488,96482.0,96468.0,0.08349467]
[1738973738624,1.18153133,96482.0,96468.0,0.08349467]
[1738973738934,0.94010123,96482.0,96468.0,0.08349467]
[1738973739087,0.94830123,96482.0,96470.0,0.155487]
[1738973739206,0.94830123,96482.0,96469.0,0.15549]
[1738973739828,0.94830123,96482.0,96464.0,0.04622428]
[1738973740041,0.94530123,96482.0,96465.0,0.155496]
[1738973740454,0.94430123,96482.0,96465.0,0.155496]
[1738973740660,1.12820488,96482.0,96464.0,0.00022428]
[1738973740860,1.04980488,96482.0,96470.0,0.155487]
[1738973741064,1.04980488,96482.0,96466.0,0.207326]
[1738973741065,1.04980488,96482.0,96469.0,0.155488]
[1738973741406,1.04680488,96482.0,96466.0,0.207326]
[1738973741807,1.04780488,96482.0,96466.0,0.207326]
[1738973742467,1.04780488,96482.0,96468.0,0.155491]
[1738973744270,1.04780488,96482.0,96469.0,0.15549]
[1738973744480,0.94530123,96482.0,96468.0,0.207322]
[1738973744729,0.53732858,96482.0,96473.0,0.04622428]
[1738973744911,0.53732858,96482.0,96477.0,0.155476]
[1738973746131,0.69279758,96482.0,96475.0,0.155479]
[1738973746340,0.53732858,96482.0,96476.0,0.155477]
[1738973747380,0.53732858,96482.0,96474.0,0.207309]
[1738973747588,0.53728858,96482.0,96477.0,0.0338]
[1738973748542,0.62729264,96482.0,96477.0,0.0338]
[1738973748741,0.62729264,96482.0,96476.0,0.207303]
[1738973749556,0.62729264,96482.0,96477.0,0.155476]
[1738973750230,0.62729264,96482.0,96478.0,0.155475]
[1738973750855,0.53728858,96482.0,96480.0,0.155472]
[1738973751478,0.53728858,96482.0,96476.0,0.207303]
[1738973751689,0.53728858,96482.0,96474.0,0.155481]
[1738973751949,0.53728858,96482.0,96475.0,0.15548]
[1738973752179,0.63979223,96482.0,96473.0,0.00022428]
[1738973752341,0.72029223,96482.0,96473.0,0.00022428]
[1738973754061,0.87029223,96482.0,96473.0,0.00022428]
[1738973761818,0.94249223,96482.0,96473.0,0.00022428]
[1738973762018,1.04499588,96482.0,96473.0,0.00022428]
[1738973762284,1.34628588,96482.0,96473.0,0.00022428]
[1738973762624,1.68666758,96482.0,96473.0,0.00022428]
[1738973762831,1.84213658,96482.0,96473.0,0.00022428]
[1738973763350,1.83913658,96482.0,96473.0,0.00022428]
[1738973763700,1.86713658,96482.0,96481.0,1.7e-07]
[1738973763892,0.458382,96474.0,96473.0,0.00022428]
[1738973764090,1.786625,96474.0,96473.0,0.00022428]
[1738973764249,2.0334251,96474.0,96473.0,0.00022428]
[1738973764455,2.0434251,96474.0,96473.0,2.8e-07]
[1738973764649,0.81422229,96474.0,96473.0,2.8e-07]
[1738973764853,0.6897021,96474.0,96473.0,2.8e-07]
[1738973765057,0.5342201,96474.0,96473.0,2.8e-07]
[1738973765261,0.5260201,96474.0,96473.0,0.04600028]
[1738973765460,0.5260201,96474.0,96473.0,0.30398693]
[1738973765461,0.4922201,96474.0,96473.0,0.30398693]
[1738973765662,0.4922201,96474.0,96473.0,0.34821378]
[1738973765880,0.5012201,96474.0,96473.0,0.34821378]
[1738973766220,0.51021808,96474.0,96473.0,0.35842395]
[1738973767090,0.50421808,96474.0,96473.0,0.35842395]
[1738973767499,0.49321808,96474.0,96473.0,0.35942395]